[Event "Live Chess"]
[Site "Chess.com"]
[Date "2021.02.28"]
[Round "-"]
[White "Cotton, Chris"]
[Black "Wilkinson, Kevin"]
[Result "0-1"]
[BlackElo "1674"]
[CurrentPosition "8/5pkp/4p3/3p2PP/1p6/2r5/5K2/2R5 w - -"]
[ECO "B23"]
[ECOUrl "https://www.chess.com/openings/Sicilian-Defense-Closed"]
[EndDate "2021.02.28"]
[EndTime "14:57:32"]
[Link "https://www.chess.com/live/game/8259815741"]
[StartTime "13:58:47"]
[Termination "ImGonnaHorseYou won by resignation"]
[TimeControl "1500+10"]
[Timezone "UTC"]
[UTCDate "2021.02.28"]
[UTCTime "13:58:47"]
[WhiteElo "1100"]

1. e4 { [%clk 0:25:10] } 1... c5 { [%clk 0:25:10] } 2. Nc3 { [%clk 0:25:16.5] } 2... a6 { [%clk 0:24:51.2] } 3. g3 { [%clk 0:25:16.3] } 3... Nc6 { [%clk 0:21:29.5] } 4. Bg2 { [%clk 0:25:07.1] } 4... Nf6 { [%clk 0:21:02.2] } 5. d3 { [%clk 0:25:05] } 5... Rb8 { [%clk 0:18:43] } 6. Be3 { [%clk 0:24:53.6] } 6... d6 { [%clk 0:18:30.5] } 7. f4 { [%clk 0:22:52.8] } 7... Bd7 { [%clk 0:15:42.7] } 8. Nf3 { [%clk 0:22:05.1] } 8... b5 { [%clk 0:15:11.2] } 9. h3 { [%clk 0:21:13.5] } 9... b4 { [%clk 0:14:10.4] } 10. Ne2 { [%clk 0:20:06.8] } 10... e6 { [%clk 0:13:11.1] } 11. d4 { [%clk 0:15:28.4] } 11... Nxe4 { [%clk 0:11:15] } 12. dxc5 { [%clk 0:14:42.8] } 12... d5 { [%clk 0:10:14.2] } 13. Ng5 { [%clk 0:13:43.6] } 13... Nxg5 { [%clk 0:06:02.7] } 14. fxg5 { [%clk 0:13:39.7] } 14... Qa5 { [%clk 0:05:23.9] } 15. O-O { [%clk 0:12:10.7] } 15... Bxc5 { [%clk 0:05:12.9] } 16. Nd4 { [%clk 0:11:13.8] } 16... O-O { [%clk 0:04:37.2] } 17. b3 { [%clk 0:09:00.9] } 17... Nxd4 { [%clk 0:04:16.7] } 18. Bxd4 { [%clk 0:09:00.4] } 18... Bxd4+ { [%clk 0:04:25.2] } 19. Qxd4 { [%clk 0:08:59.4] } 19... Qb6 { [%clk 0:04:30.6] } 20. Qxb6 { [%clk 0:08:45.3] } 20... Rxb6 { [%clk 0:04:38.1] } 21. Rfe1 { [%clk 0:08:02.7] } 21... Rc8 { [%clk 0:04:32.2] } 22. Rac1 { [%clk 0:07:43.4] } 22... a5 { [%clk 0:04:30.2] } 23. Bf1 { [%clk 0:07:23.5] } 23... a4 { [%clk 0:04:25.4] } 24. h4 { [%clk 0:06:22.8] } 24... axb3 { [%clk 0:04:26.7] } 25. axb3 { [%clk 0:06:07.6] } 25... Kf8 { [%clk 0:04:09.8] } 26. Bd3 { [%clk 0:06:07.9] } 26... g6 { [%clk 0:04:17.4] } 27. Ra1 { [%clk 0:06:12.3] } 27... Bb5 { [%clk 0:03:07.5] } 28. Rec1 { [%clk 0:04:30.2] } 28... Bxd3 { [%clk 0:01:38] } 29. cxd3 { [%clk 0:04:37.8] } 29... Rc3 { [%clk 0:01:35.1] } 30. Ra8+ { [%clk 0:03:50.4] } 30... Kg7 { [%clk 0:01:36] } 31. Rc8 { [%clk 0:03:56.9] } 31... Rxd3 { [%clk 0:01:21] } 32. Kf2 { [%clk 0:03:36.2] } 32... Rxb3 { [%clk 0:01:21.4] } 33. R8c2 { [%clk 0:03:01.6] } 33... Ra6 { [%clk 0:01:08.6] } 34. g4 { [%clk 0:02:56.4] } 34... Raa3 { [%clk 0:01:12.1] } 35. h5 { [%clk 0:02:56] } 35... gxh5 { [%clk 0:00:56.1] } 36. gxh5 { [%clk 0:02:56.9] } 36... Rc3 { [%clk 0:00:55.8] } 37. Rxc3 { [%clk 0:02:57.3] } 37... Rxc3 { [%clk 0:01:02.4] } 0-1

[Event "Live Chess"]
[Site "Chess.com"]
[Date "2021.02.28"]
[Round "-"]
[White "Hulme, William"]
[Black "Kirk, Larry G"]
[Result "1/2-1/2"]
[BlackElo "1640"]
[CurrentPosition "2b4b/5k1p/pr1p2p1/2pP1p2/2B2B2/1P5P/P4PP1/4R1K1 w - -"]
[ECO "A43"]
[ECOUrl "https://www.chess.com/openings/Old-Benoni-Defense-2.d5"]
[EndDate "2021.02.28"]
[EndTime "14:48:50"]
[Link "https://www.chess.com/live/game/8260392655"]
[StartTime "14:07:12"]
[Termination "Game drawn by repetition"]
[TimeControl "1500+10"]
[Timezone "UTC"]
[UTCDate "2021.02.28"]
[UTCTime "14:07:12"]
[WhiteElo "1965"]

1. d4 { [%clk 0:25:10] } 1... c5 { [%clk 0:25:10] } 2. d5 { [%clk 0:25:13.7] } 2... g6 { [%clk 0:25:17.7] } 3. c4 { [%clk 0:25:02.5] } 3... b5 { [%clk 0:25:25.5] } 4. cxb5 { [%clk 0:24:43.1] } 4... a6 { [%clk 0:25:32.3] } 5. b6 { [%clk 0:24:17.2] } 5... d6 { [%clk 0:24:47.1] } 6. Nc3 { [%clk 0:23:57.8] } 6... Qxb6 { [%clk 0:24:37.5] } 7. Nf3 { [%clk 0:23:56.2] } 7... Bg7 { [%clk 0:24:10.9] } 8. Nd2 { [%clk 0:23:52.2] } 8... Nd7 { [%clk 0:23:18.1] } 9. e4 { [%clk 0:23:54.4] } 9... Ngf6 { [%clk 0:22:04.8] } 10. Be2 { [%clk 0:24:02.3] } 10... O-O { [%clk 0:21:50] } 11. O-O { [%clk 0:24:10.2] } 11... Qc7 { [%clk 0:21:07.4] } 12. h3 { [%clk 0:23:21.1] } 12... Rb8 { [%clk 0:19:36.8] } 13. Nc4 { [%clk 0:22:13.7] } 13... Nb6 { [%clk 0:19:11.7] } 14. Na3 { [%clk 0:21:48.6] } 14... e6 { [%clk 0:18:39.3] } 15. Bf4 { [%clk 0:21:17.3] } 15... exd5 { [%clk 0:18:15.2] } 16. exd5 { [%clk 0:21:12.8] } 16... Re8 { [%clk 0:18:20.2] } 17. Bf3 { [%clk 0:20:57.7] } 17... Bb7 { [%clk 0:17:58] } 18. Qd2 { [%clk 0:18:57.5] } 18... Nfd7 { [%clk 0:16:20.4] } 19. Rac1 { [%clk 0:18:57.2] } 19... Ne5 { [%clk 0:16:16.4] } 20. Be2 { [%clk 0:18:41.9] } 20... Qd7 { [%clk 0:14:55.4] } 21. Rfd1 { [%clk 0:17:01.4] } 21... f5 { [%clk 0:13:34] } 22. Bh6 { [%clk 0:15:23.7] } 22... Bh8 { [%clk 0:13:31] } 23. Be3 { [%clk 0:14:08.2] } 23... Na4 { [%clk 0:12:32.1] } 24. Nxa4 { [%clk 0:14:00.6] } 24... Qxa4 { [%clk 0:12:40.6] } 25. Nc4 { [%clk 0:13:41.9] } 25... Nxc4 { [%clk 0:12:25.8] } 26. Bxc4 { [%clk 0:13:45] } 26... Bc8 { [%clk 0:11:04.6] } 27. b3 { [%clk 0:12:51] } 27... Qb4 { [%clk 0:11:00.1] } 28. Qxb4 { [%clk 0:12:57.1] } 28... Rxb4 { [%clk 0:10:55.8] } 29. Bf4 { [%clk 0:12:41.2] } 29... Rb6 { [%clk 0:10:38.3] } 30. Re1 { [%clk 0:12:17.4] } 30... Rxe1+ { [%clk 0:10:32.9] } 31. Rxe1 { [%clk 0:12:27.3] } 31... Kf7 { [%clk 0:10:32.9] } 32. Bd2 { [%clk 0:11:57.8] } 32... Rb8 { [%clk 0:09:04.9] } 33. Bf4 { [%clk 0:11:44.8] } 33... Rb6 { [%clk 0:09:08.7] } 34. Bd2 { [%clk 0:11:52.5] } 34... Rb8 { [%clk 0:09:15.7] } 35. Bf4 { [%clk 0:11:00.5] } 35... Rb6 { [%clk 0:09:19.9] } 1/2-1/2

[Event "Live Chess"]
[Site "Chess.com"]
[Date "2021.02.28"]
[Round "-"]
[White "Breslin, Daniel"]
[Black "Brownlee, Ian G"]
[Result "0-1"]
[BlackElo "1743"]
[CurrentPosition "8/8/7K/8/q7/5k2/8/6q1 w - -"]
[ECO "B34"]
[ECOUrl "https://www.chess.com/openings/Sicilian-Defense-Open-Accelerated-Dragon-Modern-Variation...6.Be3-Nf6-7.Nxc6-bxc6"]
[EndDate "2021.02.28"]
[EndTime "14:41:09"]
[Link "https://www.chess.com/live/game/8260511037"]
[StartTime "14:14:42"]
[Termination "IanBrownlee won by resignation"]
[TimeControl "1500+10"]
[Timezone "UTC"]
[UTCDate "2021.02.28"]
[UTCTime "14:14:42"]
[WhiteElo "1610"]

1. e4 { [%clk 0:25:10] } 1... c5 { [%clk 0:25:10] } 2. Nf3 { [%clk 0:25:17] } 2... Nc6 { [%clk 0:25:14.7] } 3. d4 { [%clk 0:25:23.3] } 3... cxd4 { [%clk 0:25:23.3] } 4. Nxd4 { [%clk 0:25:31.4] } 4... g6 { [%clk 0:25:32.1] } 5. Nc3 { [%clk 0:25:39.1] } 5... Bg7 { [%clk 0:25:40.7] } 6. Be3 { [%clk 0:25:48.1] } 6... Nf6 { [%clk 0:25:48.8] } 7. Nxc6 { [%clk 0:25:55.9] } 7... bxc6 { [%clk 0:25:56.1] } 8. Bd3 { [%clk 0:26:02.2] } 8... d6 { [%clk 0:26:04] } 9. O-O { [%clk 0:26:10.9] } 9... O-O { [%clk 0:26:12.2] } 10. Re1 { [%clk 0:26:20.1] } 10... Ng4 { [%clk 0:26:06.7] } 11. Qd2 { [%clk 0:26:06] } 11... Nxe3 { [%clk 0:26:14.3] } 12. Qxe3 { [%clk 0:26:12] } 12... a5 { [%clk 0:26:19.3] } 13. a4 { [%clk 0:25:55.2] } 13... Rb8 { [%clk 0:26:22.5] } 14. Rab1 { [%clk 0:25:50.3] } 14... Qb6 { [%clk 0:26:25.2] } 15. Bc4 { [%clk 0:23:50] } 15... Qxe3 { [%clk 0:26:13.6] } 16. Rxe3 { [%clk 0:23:15.8] } 16... Bd4 { [%clk 0:26:12.9] } 17. Rd3 { [%clk 0:23:09.8] } 17... e5 { [%clk 0:26:13.5] } 18. b3 { [%clk 0:20:58.2] } 18... Be6 { [%clk 0:25:44.2] } 19. Bxe6 { [%clk 0:20:15.3] } 19... fxe6 { [%clk 0:25:50.6] } 20. Rf1 { [%clk 0:19:58.1] } 20... Rf4 { [%clk 0:25:33.7] } 21. Kh1 { [%clk 0:18:34.2] } 21... Rbf8 { [%clk 0:23:32.3] } 22. f3 { [%clk 0:18:32.1] } 22... g5 { [%clk 0:22:34.3] } 23. Ne2 { [%clk 0:18:12] } 23... Rxe4 { [%clk 0:22:36.1] } 24. Nxd4 { [%clk 0:17:46.9] } 24... Rxd4 { [%clk 0:22:37.2] } 25. Rfd1 { [%clk 0:16:42.9] } 25... Rxd3 { [%clk 0:22:39.8] } 26. cxd3 { [%clk 0:16:38.4] } 26... Rf4 { [%clk 0:22:40.9] } 27. Kg1 { [%clk 0:16:10.2] } 27... Rb4 { [%clk 0:22:44.8] } 28. Rb1 { [%clk 0:16:15.9] } 28... Kf7 { [%clk 0:22:47.1] } 29. Kf2 { [%clk 0:16:24.2] } 29... Ke7 { [%clk 0:22:47.4] } 30. Ke3 { [%clk 0:16:31] } 30... d5 { [%clk 0:22:53.7] } 31. Rc1 { [%clk 0:16:28.7] } 31... Kd6 { [%clk 0:23:02.1] } 32. Rb1 { [%clk 0:16:28.2] } 32... c5 { [%clk 0:23:01.8] } 33. g3 { [%clk 0:16:16.9] } 33... c4 { [%clk 0:23:04.4] } 34. dxc4 { [%clk 0:16:03.6] } 34... dxc4 { [%clk 0:23:12.2] } 35. Rd1+ { [%clk 0:16:12.2] } 35... Kc5 { [%clk 0:23:17.1] } 36. bxc4 { [%clk 0:15:48.4] } 36... Rxa4 { [%clk 0:23:16.6] } 37. Ke4 { [%clk 0:15:33.1] } 37... Rxc4+ { [%clk 0:23:17.4] } 38. Kxe5 { [%clk 0:15:41] } 38... a4 { [%clk 0:23:25.6] } 39. Kxe6 { [%clk 0:15:49.4] } 39... a3 { [%clk 0:23:32.7] } 40. Rd5+ { [%clk 0:15:56.6] } 40... Kb4 { [%clk 0:23:40] } 41. Kf5 { [%clk 0:15:59.7] } 41... Rc5 { [%clk 0:23:47.3] } 42. Rxc5 { [%clk 0:16:05.3] } 42... Kxc5 { [%clk 0:23:56.1] } 43. Kxg5 { [%clk 0:16:14.4] } 43... a2 { [%clk 0:24:04.9] } 44. Kh6 { [%clk 0:16:24] } 44... a1=Q { [%clk 0:24:12.8] } 45. Kg5 { [%clk 0:16:32.8] } 45... Qe5+ { [%clk 0:24:20] } 46. Kh4 { [%clk 0:16:39.6] } 46... h6 { [%clk 0:24:27.2] } 47. g4 { [%clk 0:16:48.5] } 47... Qf6+ { [%clk 0:24:34.3] } 48. Kg3 { [%clk 0:16:56.3] } 48... Kd4 { [%clk 0:24:40.1] } 49. h4 { [%clk 0:17:05.1] } 49... Ke3 { [%clk 0:24:48.2] } 50. g5 { [%clk 0:17:08.9] } 50... hxg5 { [%clk 0:24:56.7] } 51. Kg4 { [%clk 0:17:16.4] } 51... Qf4+ { [%clk 0:25:00.2] } 52. Kh5 { [%clk 0:17:24.5] } 52... Qxh4+ { [%clk 0:25:08.6] } 53. Kg6 { [%clk 0:17:33.4] } 53... Kxf3 { [%clk 0:25:14.8] } 54. Kf5 { [%clk 0:17:41.1] } 54... Qf4+ { [%clk 0:25:22.3] } 55. Kg6 { [%clk 0:17:50.1] } 55... g4 { [%clk 0:25:31.1] } 56. Kh5 { [%clk 0:17:59.4] } 56... g3 { [%clk 0:25:36.8] } 57. Kg6 { [%clk 0:18:08.4] } 57... g2 { [%clk 0:25:45.4] } 58. Kh5 { [%clk 0:18:17.2] } 58... Qf5+ { [%clk 0:25:52.1] } 59. Kh6 { [%clk 0:18:24.4] } 59... Qf4+ { [%clk 0:25:43] } 60. Kh5 { [%clk 0:18:32.1] } 60... Qa4 { [%clk 0:25:45.6] } 61. Kh6 { [%clk 0:18:37.2] } 61... g1=Q { [%clk 0:25:51.6] } 0-1

[Event "Live Chess"]
[Site "Chess.com"]
[Date "2021.02.28"]
[Round "-"]
[White "Thomson, Peter"]
[Black "Larkin, John"]
[Result "0-1"]
[BlackElo "1684"]
[CurrentPosition "8/p4k2/1p1p4/3P1ppp/P2P4/5K2/6P1/8 w - -"]
[ECO "C42"]
[ECOUrl "https://www.chess.com/openings/Petrovs-Defense-Classical-Attack"]
[EndDate "2021.02.28"]
[EndTime "14:55:43"]
[Link "https://www.chess.com/live/game/8259903939"]
[StartTime "14:04:14"]
[Termination "Cynac won by resignation"]
[TimeControl "1500+10"]
[Timezone "UTC"]
[UTCDate "2021.02.28"]
[UTCTime "14:04:14"]
[WhiteElo "1366"]

1. e4 { [%clk 0:25:10] } 1... e5 { [%clk 0:25:10] } 2. Nf3 { [%clk 0:25:12.1] } 2... Nf6 { [%clk 0:25:18.1] } 3. Nxe5 { [%clk 0:25:07.9] } 3... d6 { [%clk 0:25:26.3] } 4. Nf3 { [%clk 0:25:13.9] } 4... Nxe4 { [%clk 0:25:34.9] } 5. d4 { [%clk 0:25:06.3] } 5... Be7 { [%clk 0:25:41.6] } 6. Bc4 { [%clk 0:24:39.5] } 6... d5 { [%clk 0:25:17.8] } 7. Bb3 { [%clk 0:24:36] } 7... O-O { [%clk 0:25:05.3] } 8. O-O { [%clk 0:24:11.3] } 8... Nc6 { [%clk 0:24:41.7] } 9. c3 { [%clk 0:23:40.5] } 9... h6 { [%clk 0:22:48.9] } 10. Qd3 { [%clk 0:22:54.1] } 10... Bf5 { [%clk 0:21:27.7] } 11. Qe2 { [%clk 0:21:40.7] } 11... Re8 { [%clk 0:18:48.6] } 12. Be3 { [%clk 0:20:59.8] } 12... Bg4 { [%clk 0:15:56.2] } 13. Nbd2 { [%clk 0:18:52] } 13... Qd7 { [%clk 0:14:55] } 14. Rad1 { [%clk 0:17:27.7] } 14... Na5 { [%clk 0:12:55] } 15. Bc2 { [%clk 0:16:22.6] } 15... Bd6 { [%clk 0:12:21.7] } 16. Rfe1 { [%clk 0:14:26.3] } 16... Nxd2 { [%clk 0:10:39.8] } 17. Rxd2 { [%clk 0:14:01.2] } 17... Nc4 { [%clk 0:10:00.9] } 18. Rd3 { [%clk 0:13:24.9] } 18... Nxb2 { [%clk 0:09:43.6] } 19. Rd2 { [%clk 0:12:57.5] } 19... Nc4 { [%clk 0:09:26.9] } 20. Rdd1 { [%clk 0:12:55.1] } 20... Bf5 { [%clk 0:06:34.6] } 21. Bxf5 { [%clk 0:11:54.9] } 21... Qxf5 { [%clk 0:06:26.5] } 22. Nd2 { [%clk 0:11:09] } 22... Nxe3 { [%clk 0:05:13.1] } 23. fxe3 { [%clk 0:11:10.2] } 23... Re6 { [%clk 0:03:17.8] } 24. c4 { [%clk 0:10:38.6] } 24... Rae8 { [%clk 0:02:40.3] } 25. cxd5 { [%clk 0:10:27.7] } 25... Rxe3 { [%clk 0:02:37.7] } 26. Qf2 { [%clk 0:10:08.9] } 26... Qxf2+ { [%clk 0:02:12.1] } 27. Kxf2 { [%clk 0:10:10.9] } 27... Rxe1 { [%clk 0:02:15.8] } 28. Rxe1 { [%clk 0:10:17.2] } 28... Rxe1 { [%clk 0:02:24.1] } 29. Kxe1 { [%clk 0:10:23.9] } 29... Bxh2 { [%clk 0:02:32] } 30. Nf3 { [%clk 0:10:13.6] } 30... Bd6 { [%clk 0:02:37.1] } 31. Ne5 { [%clk 0:10:03.1] } 31... f6 { [%clk 0:02:21.5] } 32. Nc4 { [%clk 0:09:57.3] } 32... b6 { [%clk 0:02:14.4] } 33. Nxd6 { [%clk 0:09:17.8] } 33... cxd6 { [%clk 0:02:20.7] } 34. Kf2 { [%clk 0:09:15.6] } 34... Kf7 { [%clk 0:02:27.6] } 35. a4 { [%clk 0:09:14.2] } 35... g5 { [%clk 0:02:22.3] } 36. Kg3 { [%clk 0:09:17] } 36... f5 { [%clk 0:02:26.6] } 37. Kf3 { [%clk 0:08:55.2] } 37... h5 { [%clk 0:02:21.2] } 0-1

[Event "Live Chess"]
[Site "Chess.com"]
[Date "2021.02.28"]
[Round "-"]
[White "Sanger, Jake M"]
[Black "Anderson, James"]
[Result "1-0"]
[BlackElo "1310"]
[CurrentPosition "3r4/1R1Bbk2/2P1ppbp/3p2p1/3P4/4P2P/1P1N1PP1/6K1 b - -"]
[ECO "D02"]
[ECOUrl "https://www.chess.com/openings/Queens-Pawn-Opening-Symmetrical-Variation"]
[EndDate "2021.02.28"]
[EndTime "14:36:01"]
[Link "https://www.chess.com/live/game/8260424439"]
[StartTime "14:09:24"]
[Termination "JakeSanger32 won by resignation"]
[TimeControl "1510"]
[Timezone "UTC"]
[UTCDate "2021.02.28"]
[UTCTime "14:09:24"]
[WhiteElo "1702"]

1. d4 { [%clk 0:25:10] } 1... Nf6 { [%clk 0:25:10] } 2. Nf3 { [%clk 0:25:04.8] } 2... d5 { [%clk 0:25:04.6] } 3. Bf4 { [%clk 0:24:57.2] } 3... Bf5 { [%clk 0:24:57.7] } 4. e3 { [%clk 0:24:54.8] } 4... e6 { [%clk 0:24:37.9] } 5. c4 { [%clk 0:24:51.3] } 5... c6 { [%clk 0:24:35.6] } 6. Qb3 { [%clk 0:24:47.7] } 6... Qb6 { [%clk 0:24:22] } 7. c5 { [%clk 0:24:44.9] } 7... Qxb3 { [%clk 0:24:19.9] } 8. axb3 { [%clk 0:24:44.8] } 8... Be7 { [%clk 0:24:13.7] } 9. h3 { [%clk 0:24:41.5] } 9... Nbd7 { [%clk 0:24:03.7] } 10. Nc3 { [%clk 0:24:37] } 10... O-O { [%clk 0:23:59.7] } 11. b4 { [%clk 0:24:33.8] } 11... h6 { [%clk 0:23:56.6] } 12. b5 { [%clk 0:24:02.8] } 12... Ne4 { [%clk 0:23:25.3] } 13. bxc6 { [%clk 0:23:46.5] } 13... bxc6 { [%clk 0:23:21.8] } 14. Ba6 { [%clk 0:23:34.9] } 14... Rae8 { [%clk 0:22:10.6] } 15. Bb7 { [%clk 0:22:17.3] } 15... Nb8 { [%clk 0:22:05.7] } 16. O-O { [%clk 0:19:18.7] } 16... f6 { [%clk 0:20:45.9] } 17. Rxa7 { [%clk 0:16:18.5] } 17... g5 { [%clk 0:19:47.9] } 18. Bxb8 { [%clk 0:14:21.2] } 18... Rxb8 { [%clk 0:19:23.7] } 19. Bxc6 { [%clk 0:14:19.5] } 19... Rf7 { [%clk 0:19:19.7] } 20. Ra8 { [%clk 0:13:43.5] } 20... Rff8 { [%clk 0:18:32.3] } 21. Rfa1 { [%clk 0:13:38.7] } 21... Kg7 { [%clk 0:18:29.8] } 22. Nxe4 { [%clk 0:11:08] } 22... Bxe4 { [%clk 0:18:13.2] } 23. Nd2 { [%clk 0:11:06.1] } 23... Bg6 { [%clk 0:17:47.1] } 24. R1a7 { [%clk 0:10:10.4] } 24... Kf7 { [%clk 0:16:43.3] } 25. Rxb8 { [%clk 0:10:02.4] } 25... Rxb8 { [%clk 0:16:25.5] } 26. Rb7 { [%clk 0:10:01.3] } 26... Rc8 { [%clk 0:15:35.3] } 27. Bd7 { [%clk 0:09:57.6] } 27... Rd8 { [%clk 0:15:27.3] } 28. c6 { [%clk 0:09:55.7] } 1-0

[Event "Live Chess"]
[Site "Chess.com"]
[Date "2021.02.28"]
[Round "-"]
[White "Robertson, John"]
[Black "Smith, Peter R"]
[Result "0-1"]
[BlackElo "2013"]
[CurrentPosition "8/8/8/8/3pk3/4p3/4K3/8 w - -"]
[ECO "A45"]
[ECOUrl "https://www.chess.com/openings/Indian-Game"]
[EndDate "2021.02.28"]
[EndTime "15:22:40"]
[Link "https://www.chess.com/live/game/8260520375"]
[StartTime "14:15:37"]
[Termination "peterthefairlygood won by resignation"]
[TimeControl "1500+10"]
[Timezone "UTC"]
[UTCDate "2021.02.28"]
[UTCTime "14:15:37"]
[WhiteElo "1224"]

1. d4 { [%clk 0:25:10] } 1... Nf6 { [%clk 0:25:10] } 2. Bf4 { [%clk 0:25:06] } 2... c5 { [%clk 0:25:18.5] } 3. d5 { [%clk 0:25:01.1] } 3... g6 { [%clk 0:25:27.3] } 4. Nc3 { [%clk 0:23:39.3] } 4... d6 { [%clk 0:25:32.5] } 5. e4 { [%clk 0:23:41.2] } 5... Bg7 { [%clk 0:25:42] } 6. Bb5+ { [%clk 0:23:39.5] } 6... Bd7 { [%clk 0:25:39] } 7. Qd3 { [%clk 0:23:07.6] } 7... O-O { [%clk 0:25:36.3] } 8. Nge2 { [%clk 0:23:10.1] } 8... a6 { [%clk 0:25:42.6] } 9. Bxd7 { [%clk 0:23:01.1] } 9... Nbxd7 { [%clk 0:25:51.4] } 10. a4 { [%clk 0:22:46.7] } 10... b5 { [%clk 0:24:30.5] } 11. O-O { [%clk 0:19:48] } 11... b4 { [%clk 0:22:24.1] } 12. Nd1 { [%clk 0:19:53.9] } 12... Qc7 { [%clk 0:21:39.9] } 13. c4 { [%clk 0:19:59.4] } 13... bxc3 { [%clk 0:20:45.9] } 14. Ndxc3 { [%clk 0:19:54.5] } 14... Rfb8 { [%clk 0:20:28.9] } 15. Qd2 { [%clk 0:18:44.1] } 15... Rb4 { [%clk 0:19:39.8] } 16. f3 { [%clk 0:17:45.3] } 16... Rab8 { [%clk 0:19:33.7] } 17. Ra2 { [%clk 0:17:38.8] } 17... Nb6 { [%clk 0:18:05.3] } 18. Rb1 { [%clk 0:15:49.6] } 18... Nc4 { [%clk 0:17:30.6] } 19. Qc2 { [%clk 0:15:44.1] } 19... Qb6 { [%clk 0:16:15.2] } 20. Nd1 { [%clk 0:13:51.1] } 20... Nd7 { [%clk 0:15:27.2] } 21. Bd2 { [%clk 0:08:43.9] } 21... Nxd2 { [%clk 0:15:23.3] } 22. Qxd2 { [%clk 0:08:51.5] } 22... Ne5 { [%clk 0:15:01.3] } 23. Nec3 { [%clk 0:07:30.2] } 23... Nc4 { [%clk 0:12:50.9] } 24. Qc2 { [%clk 0:06:40.4] } 24... Rb3 { [%clk 0:10:04.2] } 25. a5 { [%clk 0:03:29.8] } 25... Nxa5 { [%clk 0:06:09.2] } 26. Rba1 { [%clk 0:03:08.6] } 26... c4+ { [%clk 0:04:28.2] } 27. Kf1 { [%clk 0:03:06.1] } 27... Nb7 { [%clk 0:04:05.7] } 28. Rxa6 { [%clk 0:02:54.1] } 28... Qd4 { [%clk 0:03:50.6] } 29. Ra8 { [%clk 0:02:05.3] } 29... Nc5 { [%clk 0:03:42.3] } 30. Ne2 { [%clk 0:01:01.5] } 30... Qd3 { [%clk 0:03:17.3] } 31. Qxd3 { [%clk 0:01:04.8] } 31... Nxd3 { [%clk 0:03:11.7] } 32. Rxb8+ { [%clk 0:01:02.7] } 32... Rxb8 { [%clk 0:03:16.7] } 33. Nec3 { [%clk 0:00:58.8] } 33... Nxb2 { [%clk 0:02:23.6] } 34. Rb1 { [%clk 0:00:27.9] } 34... Bxc3 { [%clk 0:02:25.5] } 35. Nxc3 { [%clk 0:00:29.2] } 35... Rb3 { [%clk 0:02:17.2] } 36. Nd1 { [%clk 0:00:28.8] } 36... Nxd1 { [%clk 0:02:18.3] } 37. Rxd1 { [%clk 0:00:34.8] } 37... Kg7 { [%clk 0:01:46.1] } 38. Rc1 { [%clk 0:00:37.6] } 38... c3 { [%clk 0:01:51.7] } 39. Rc2 { [%clk 0:00:39.2] } 39... Kf6 { [%clk 0:01:59.2] } 40. Ke2 { [%clk 0:00:42.9] } 40... Rb2 { [%clk 0:01:40.9] } 41. Kd3 { [%clk 0:00:51.1] } 41... Ke5 { [%clk 0:01:39.6] } 42. Kxc3 { [%clk 0:00:57.3] } 42... Rxc2+ { [%clk 0:01:44.3] } 43. Kxc2 { [%clk 0:01:05.6] } 43... Kd4 { [%clk 0:01:49.9] } 44. Kd2 { [%clk 0:01:14.4] } 44... f5 { [%clk 0:01:58.5] } 45. exf5 { [%clk 0:01:21.4] } 45... gxf5 { [%clk 0:02:07.2] } 46. g3 { [%clk 0:01:26.4] } 46... Kxd5 { [%clk 0:02:15.9] } 47. Ke3 { [%clk 0:01:34.1] } 47... e5 { [%clk 0:02:24.1] } 48. h3 { [%clk 0:01:38.3] } 48... Ke6 { [%clk 0:02:32.7] } 49. f4 { [%clk 0:01:18] } 49... e4 { [%clk 0:02:10.4] } 50. g4 { [%clk 0:01:23.2] } 50... Kf6 { [%clk 0:02:09.1] } 51. Kd4 { [%clk 0:01:07.5] } 51... Kg6 { [%clk 0:02:12.9] } 52. Ke3 { [%clk 0:00:56.9] } 52... d5 { [%clk 0:02:21.2] } 53. Kd4 { [%clk 0:01:04.6] } 53... fxg4 { [%clk 0:02:10.8] } 54. hxg4 { [%clk 0:01:12.5] } 54... h6 { [%clk 0:01:52.2] } 55. f5+ { [%clk 0:01:00.7] } 55... Kf6 { [%clk 0:01:58.7] } 56. Ke3 { [%clk 0:01:05.3] } 56... Kg5 { [%clk 0:02:05.5] } 57. Kd4 { [%clk 0:01:10.7] } 57... Kf6 { [%clk 0:02:10] } 58. Ke3 { [%clk 0:01:15.8] } 58... h5 { [%clk 0:02:13.3] } 59. Kf4 { [%clk 0:01:09.1] } 59... hxg4 { [%clk 0:02:20.5] } 60. Kxg4 { [%clk 0:01:16.1] } 60... e3 { [%clk 0:02:29.1] } 61. Kf3 { [%clk 0:01:23.5] } 61... d4 { [%clk 0:02:38.2] } 62. Ke2 { [%clk 0:01:30.4] } 62... Kxf5 { [%clk 0:02:47.2] } 63. Kd3 { [%clk 0:01:39.5] } 63... Kf4 { [%clk 0:02:56.1] } 64. Ke2 { [%clk 0:01:47.4] } 64... Ke4 { [%clk 0:03:05.3] } 0-1